fUSD/lending_fUSD_20240210
["ID","MTS","AMOUNT","RATE_DAILY","PERIOD"]
[313674438,1707571841771,-9574.69,0.00022816,2]
[313674439,1707571841780,-939.69,0.00022816,2]
[313674440,1707571841790,-500.0,0.00022816,2]
[313674441,1707571841800,-417.94,0.00022816,2]
[313674442,1707571841809,-891.64,0.00022816,2]
[313674443,1707571841818,-606.24,0.00022816,2]
[313674444,1707571841828,-500.0,0.00022816,2]
[313674445,1707571841837,-500.0,0.00022816,2]
[313674446,1707571841846,-1375.77,0.00022816,2]
[313674447,1707571841855,-500.0,0.00022816,2]
[313674448,1707571841863,-2442.57,0.00022816,2]
[313674449,1707571841872,-3708.92,0.00022816,2]
[313674450,1707571841881,-500.0,0.00022816,2]
[313674451,1707571841891,-500.0,0.00022816,2]
[313674452,1707571841900,-500.0,0.00022817,2]
[313674453,1707571841909,-500.0,0.00022817,2]
[313674454,1707571841918,-791.36,0.00022817,2]
[313674455,1707571841927,-500.0,0.00022817,2]
[313674456,1707571841937,-500.0,0.00022817,2]
[313674457,1707571841946,-500.0,0.00022817,2]
[313674458,1707571841955,-274.8547982,0.00022817,2]
[313674459,1707571841963,-500.0,0.00022821,2]
[313674460,1707571841973,-216.1211168,0.00022826,2]
[313674461,1707571841982,-500.0,0.00022831,2]
[313674462,1707571841991,-500.0,0.00022841,2]
[313674463,1707571842000,-172.8262818,0.00022844,2]
[313674464,1707571842009,-155.0,0.00022845,2]
[313674465,1707571842018,-500.0,0.0002285,2]
[313674466,1707571842028,-500.0,0.0002286,2]
[313674467,1707571842037,-30744.78105216,0.00022865,2]
[313674468,1707571842046,-500.0,0.00022869,2]
[313674469,1707571842055,-500.0,0.00022879,2]
[313674470,1707571842064,-4627.96225098,0.00022884,2]
[313674471,1707571842073,-1102.60721522,0.00022884,2]
[313674472,1707571842391,-1679.7087082,0.00022884,2]
[313674473,1707571842406,-1139.10523032,0.00022884,2]
[313674474,1707571842420,-762.4416218,0.00022884,2]
[313674475,1707571842442,-351.15662421,0.00022884,2]
[313674477,1707571842795,-951.0,0.00022752,2]
[313674478,1707571842805,-1832.08049826,0.00022884,2]
[313674479,1707571842841,-2991.09123951,0.00022884,2]
[313674480,1707571842952,-3958.04100059,0.00022884,2]
[313674481,1707571842962,-2415.07325462,0.00022884,2]
[313674482,1707571842971,-500.0,0.00022889,2]
[313674483,1707571842980,-4539.48195515,0.00022891,2]
[313674484,1707571842991,-500.0,0.00022898,2]
[313674485,1707571843001,-2889.13773494,0.000229,10]
[313674486,1707571843011,-3003.96762066,0.000229,2]
[313674487,1707571843020,-2716.82192551,0.000229,2]
[313674488,1707571843030,-1500.0,0.000229,2]
[313674489,1707571843040,-1500.0,0.000229,2]
[313674490,1707571843049,-1500.0,0.000229,2]
[313674491,1707571843058,-1500.0,0.000229,2]
[313674492,1707571843068,-1500.0,0.000229,2]
[313674493,1707571843077,-1500.0,0.000229,2]
[313674494,1707571843087,-1500.0,0.000229,2]
[313674495,1707571843096,-1500.0,0.000229,2]
[313674496,1707571843106,-1500.0,0.000229,2]
[313674497,1707571843115,-1499.49,0.000229,2]
[313674499,1707571843124,-933.6623058,0.000229,6]
[313674501,1707571843133,-500.0,0.00022908,2]
[313674502,1707571843142,-4539.48195515,0.00022916,2]
[313674503,1707571843151,-500.0,0.00022918,2]
[313674504,1707571843161,-500.0,0.00022927,2]
[313674505,1707571843170,-4627.96225096,0.00022933,2]
[313674506,1707571843179,-13816.23213811,0.00022933,2]
[313674507,1707571843189,-2415.07325462,0.00022933,2]
[313674508,1707571843199,-500.0,0.00022937,2]
[313674509,1707571843212,-4539.48195515,0.00022941,2]
[313674510,1707571843221,-933.66230578,0.00022958,6]
[313674511,1707571843230,-1000.0,0.00022963,2]
[313674512,1707571843239,-1000.0,0.00022963,2]
[313674513,1707571843250,-1000.0,0.00022963,2]
[313674514,1707571843260,-1000.0,0.00022963,2]
[313674515,1707571843269,-1000.0,0.00022963,2]
[313674516,1707571843278,-1000.0,0.00022963,2]
[313674517,1707571843289,-1000.0,0.00022963,2]
[313674518,1707571843299,-1000.0,0.00022963,2]
[313674519,1707571843308,-1000.0,0.00022963,2]
[313674520,1707571843317,-1000.0,0.00022963,2]
[313674521,1707571843327,-1000.0,0.00022963,2]
[313674522,1707571843336,-1000.0,0.00022963,2]
[313674523,1707571843346,-1000.0,0.00022963,2]
[313674524,1707571843356,-1000.0,0.00022963,2]
[313674525,1707571843365,-1000.0,0.00022963,2]
[313674526,1707571843376,-1000.0,0.00022963,2]
[313674527,1707571843386,-1000.0,0.00022963,2]
[313674528,1707571843396,-1000.0,0.00022963,2]
[313674529,1707571843405,-1000.0,0.00022963,2]
[313674530,1707571843415,-1000.0,0.00022963,2]
[313674531,1707571843425,-1000.0,0.00022963,2]
[313674532,1707571843435,-1000.0,0.00022963,2]
[313674533,1707571843444,-1000.0,0.00022963,2]
[313674534,1707571843454,-1000.0,0.00022963,2]
[313674535,1707571843463,-471.0198,0.00022963,2]
[313674536,1707571843473,-500.0,0.00022963,2]
[313674537,1707571843483,-116.28974295,0.00022963,2]
[313674561,1707571845882,-1418.86206,0.00022752,2]
[313674566,1707571845993,-439.13794,0.00022752,2]
[313674567,1707571846003,-840.0,0.00022752,2]
[313674568,1707571846013,-210.86572813,0.00022758,2]
[313674569,1707571958499,737.6,0.00021907,2]
[313674570,1707572051787,195.04,0.00021809,2]
[313674571,1707572068178,329.0,0.00022453,2]
[313674572,1707572081636,250.0,0.00021918,2]
[313674573,1707572116990,156.93047859,0.00022439,2]
[313674574,1707572122260,156.93047849,0.00022468,2]
[313674575,1707572127095,156.93047849,0.00022498,2]
[313674576,1707572128398,184.09,0.00021788,2]
[313674577,1707572129095,257.25,0.0001987,2]
[313674578,1707572129301,257.25,0.00022134,2]
[313674589,1707572253380,543.86,0.00021727,2]
[313674593,1707572284304,208.0,0.00021561,2]
[313674596,1707572354909,157.54,0.00021907,2]
[313674598,1707572428343,409.92,0.00021751,2]
[313674599,1707572552786,195.04,0.00021805,2]
[313674600,1707572592419,156.93047849,0.00022439,2]
[313674601,1707572597445,156.93047849,0.0002247,2]
[313674602,1707572639554,231.52,0.00019813,2]
[313674603,1707572639745,231.52,0.00022077,2]
[313674604,1707572893960,672.06,0.00021722,2]
[313674605,1707573012885,156.93047849,0.00022439,2]
[313674606,1707573017902,156.93047849,0.00022478,2]
[313674617,1707573032012,-353.0,0.00022512,2]
[313674618,1707573032022,-156.93047849,0.00022518,2]
[313674619,1707573032032,-500.0,0.00022539,2]
[313674620,1707573032041,-505.81797481,0.00022539,2]
[313674621,1707573032051,-500.0,0.00022539,2]
[313674622,1707573032060,-212.22257756,0.00022539,2]
[313674623,1707573032070,-407.72506867,0.00022539,2]
[313674624,1707573032082,-92.27493133,0.00022539,2]
[313674625,1707573032091,-425.47044273,0.00022539,2]
[313674626,1707573032103,-74.52955727,0.00022539,2]
[313674627,1707573032112,-439.56782459,0.00022539,2]
[313674628,1707573032140,-60.43217541,0.00022539,2]
[313674629,1707573032150,-837.95505683,0.00022539,2]
[313674630,1707573032164,-351.95494317,0.00022539,2]
[313674631,1707573032173,-1360.617684,0.00022539,2]
[313674632,1707573032189,-1017.50887766,0.00022539,2]
[313674633,1707573032201,-314.19872509,0.00022539,2]
[313674641,1707573038166,-1636.04856817,0.00022539,2]
[313674650,1707573040596,-384.5133043,0.00022539,2]
[313674651,1707573041446,-739.22341008,0.00022539,2]
[313674672,1707573045256,-3324.6894307,0.00022539,2]
[313674673,1707573045265,-500.0,0.00022539,2]
[313674674,1707573045275,-500.0,0.00022539,2]
[313674675,1707573045284,-686.8162693,0.00022539,2]
[313674676,1707573045297,-1552.2037307,0.00022539,2]
[313674677,1707573045306,-247.77790411,0.00022539,2]
[313674678,1707573045317,-598.59330646,0.00022539,2]
[313674679,1707573045329,-330.72669354,0.00022539,2]
[313674680,1707573045338,-537.45372111,0.00022539,2]
[313674681,1707573045348,-8025.59,0.00022539,2]
[313674682,1707573045357,-450.04889354,0.00022539,2]
[313674683,1707573045375,-49.95110646,0.00022539,2]
[313674684,1707573045385,-500.0,0.00022539,2]
[313674685,1707573045395,-108.30082885,0.00022539,2]
[313674686,1707573045490,-391.69917115,0.00022539,2]
[313674687,1707573045500,-493.40896781,0.00022539,2]
[313674693,1707573045911,-6.59103219,0.00022539,2]
[313674694,1707573045919,-500.0,0.00022539,2]
[313674695,1707573045929,-15.34734927,0.00022539,2]
[313674696,1707573045965,-632.57265073,0.00022539,2]
[313674697,1707573045974,-612.49,0.00022539,2]
[313674698,1707573045984,-500.0,0.00022539,2]
[313674699,1707573045993,-904.32,0.00022539,2]
[313674700,1707573046003,-500.0,0.00022539,2]
[313674701,1707573046012,-500.0,0.00022539,2]
[313674702,1707573046022,-500.0,0.00022539,2]
[313674703,1707573046031,-1896.97,0.0002254,2]
[313674704,1707573046041,-500.0,0.0002254,2]
[313674705,1707573046051,-500.0,0.0002254,2]
[313674706,1707573046061,-1798.73,0.0002254,2]
[313674707,1707573046071,-865.42,0.0002254,2]
[313674708,1707573046080,-11993.22,0.0002254,2]
[313674709,1707573046090,-500.0,0.0002254,2]
[313674710,1707573046099,-596.37496886,0.0002254,2]
[313674711,1707573046109,-2573.33,0.0002254,2]
[313674712,1707573046119,-500.0,0.0002254,2]
[313674713,1707573046129,-500.0,0.0002254,2]
[313674714,1707573046139,-609.21,0.0002254,2]
[313674715,1707573046149,-500.0,0.0002254,2]
[313674716,1707573046159,-760.37,0.0002254,2]
[313674717,1707573046169,-2400.89,0.0002254,2]
[313674718,1707573046179,-1129.9,0.0002254,2]
[313674719,1707573046189,-500.0,0.0002254,2]
[313674720,1707573046198,-620.42,0.0002254,2]
[313674721,1707573046208,-4527.95,0.0002254,2]
[313674722,1707573046218,-500.0,0.0002254,2]
[313674723,1707573046228,-500.0,0.0002254,2]
[313674724,1707573046238,-500.0,0.0002254,2]
[313674725,1707573046248,-590.52,0.0002254,2]
[313674726,1707573046257,-500.0,0.0002254,2]
[313674727,1707573046266,-500.0,0.0002254,2]
[313674728,1707573046277,-500.0,0.0002254,2]
[313674729,1707573046287,-1089.23,0.0002254,2]
[313674730,1707573046297,-500.0,0.0002254,2]
[313674731,1707573046307,-500.0,0.0002254,2]
[313674732,1707573046317,-500.0,0.0002254,2]
[313674733,1707573046326,-500.0,0.0002254,2]
[313674734,1707573046336,-1525.09,0.0002254,2]
[313674735,1707573046346,-8909.81,0.0002254,2]
[313674736,1707573046355,-500.0,0.0002254,2]
[313674737,1707573046366,-549.87,0.0002254,2]
[313674738,1707573046376,-2158.06,0.0002254,2]
[313674740,1707573046387,-4588.78,0.0002254,2]
[313674742,1707573046397,-500.0,0.0002254,2]
[313674744,1707573046407,-737.2,0.0002254,2]
[313674745,1707573046417,-500.0,0.0002254,2]
[313674746,1707573046427,-500.0,0.0002254,2]
[313674747,1707573046438,-500.0,0.0002254,2]
[313674748,1707573046701,-500.0,0.0002254,2]
[313674749,1707573046711,-638.68,0.0002254,2]
[313674750,1707573046720,-1529.46,0.0002254,2]
[313674751,1707573046730,-500.0,0.0002254,2]
[313674752,1707573046739,-500.0,0.0002254,2]
[313674753,1707573046748,-500.0,0.0002254,2]
[313674754,1707573046758,-1461.69,0.0002254,2]
[313674755,1707573046767,-500.0,0.0002254,2]
[313674756,1707573046776,-1393.59,0.0002254,2]
[313674757,1707573046786,-500.0,0.0002254,2]
[313674758,1707573046795,-581.2,0.0002254,2]
[313674759,1707573046805,-512.28,0.0002254,2]
[313674760,1707573046814,-500.0,0.0002254,2]
[313674761,1707573046824,-381.40529956,0.0002254,2]
[313674762,1707573046834,-500.0,0.0002254,2]
[313674763,1707573046843,-500.0,0.0002254,2]
[313674764,1707573046852,-1865.9,0.0002254,2]
[313674765,1707573046861,-500.0,0.0002254,2]
[313674766,1707573046869,-500.0,0.0002254,2]
[313674767,1707573046880,-500.0,0.0002254,2]
[313674768,1707573046889,-500.0,0.0002254,2]
[313674769,1707573046898,-474.52,0.0002254,5]
[313674770,1707573046907,-500.0,0.0002254,2]
[313674771,1707573046917,-500.0,0.0002254,2]
[313674772,1707573046926,-3424.88,0.0002254,2]
[313674773,1707573046935,-1403.29,0.0002254,2]
[313674774,1707573046944,-500.0,0.0002254,2]
[313674775,1707573046953,-2016.4,0.0002254,2]
[313674776,1707573046962,-2427.95,0.0002254,2]
[313674777,1707573046971,-2115.28,0.0002254,2]
[313674778,1707573046980,-578.04,0.0002254,2]
[313674779,1707573046989,-640.03,0.0002254,2]
[313674780,1707573046999,-4125.25,0.0002254,2]
[313674781,1707573047008,-202.46787267,0.0002254,2]
[313674782,1707573047021,-254.96244065,0.0002254,2]
[313674783,1707573047039,-42.56968668,0.0002254,2]
[313674784,1707573047048,-350.89846479,0.0002254,2]
[313674785,1707573047076,-149.10153521,0.0002254,2]
[313674786,1707573047085,-504.84264657,0.00022541,2]
[313674787,1707573047095,-500.0,0.00022541,2]
[313674788,1707573047104,-500.0,0.00022541,2]
[313674789,1707573047113,-616.99,0.00022541,2]
[313674790,1707573047122,-500.0,0.00022541,2]
[313674791,1707573047131,-636.64128889,0.00022541,2]
[313674792,1707573047140,-500.0,0.00022541,2]
[313674793,1707573047150,-500.0,0.00022541,2]
[313674794,1707573047159,-500.0,0.00022541,2]
[313674795,1707573047168,-500.0,0.00022541,2]
[313674796,1707573047178,-500.0,0.00022541,7]
[313674797,1707573047187,-500.0,0.00022541,2]
[313674798,1707573047197,-500.0,0.00022541,2]
[313674799,1707573047206,-500.0,0.00022541,2]
[313674800,1707573047215,-500.0,0.00022541,2]
[313674801,1707573047224,-1637.89,0.00022541,2]
[313674802,1707573047234,-500.0,0.00022541,2]
[313674803,1707573047243,-500.0,0.00022541,2]
[313674804,1707573047252,-500.0,0.00022541,2]
[313674805,1707573047262,-500.0,0.00022541,2]
[313674806,1707573047271,-500.0,0.00022541,2]
[313674807,1707573047280,-500.0,0.00022541,2]
[313674808,1707573047289,-84.1720376,0.00022541,2]
[313674809,1707573047302,-415.8279624,0.00022541,2]
[313674810,1707573047311,-500.0,0.00022541,2]
[313674811,1707573047320,-135.69757388,0.00022541,2]
[313674812,1707573047332,-364.30242612,0.00022541,2]
[313674813,1707573047341,-500.0,0.00022541,2]
[313674814,1707573047350,-211.10972026,0.00022541,2]
[313674815,1707573047362,-288.89027974,0.00022541,2]
[313674816,1707573047371,-176.64960389,0.00022541,2]
[313674817,1707573047382,-365.15759673,0.00022541,2]
[313674818,1707573047391,-500.0,0.00022541,2]
[313674819,1707573047401,-500.0,0.00022541,2]
[313674820,1707573047411,-512.6,0.00022541,2]
[313674821,1707573047421,-500.0,0.00022541,2]
[313674822,1707573047430,-500.0,0.00022541,2]
[313674823,1707573047439,-152.97799556,0.00022541,2]
[313674824,1707573047449,-500.0,0.00022541,2]
[313674825,1707573047459,-680.93,0.00022541,2]
[313674826,1707573047468,-500.0,0.00022541,2]
[313674827,1707573047478,-254.81467586,0.00022541,2]
[313674828,1707573047488,-500.0,0.00022541,2]
[313674829,1707573047498,-245.79613009,0.00022541,2]
[313674830,1707573068761,1000.0,0.000225,2]
[313674831,1707573069485,207.76441738,0.00022296,2]
[313674832,1707573069844,207.76441738,0.00022278,2]
[313674833,1707573100277,208.36,0.00019865,2]
[313674834,1707573100507,208.36,0.00022129,2]
[313674835,1707573106159,167.2801,0.00022439,2]
[313674836,1707573127603,16415.24573471,0.00022257,2]
[313674837,1707573128198,16415.24573471,0.00022284,2]
[313674838,1707573171642,4791.91559789,0.00022294,2]
[313674839,1707573171945,4791.91559789,0.00022282,2]
[313674840,1707573173488,1407.5349,0.00022441,2]
[313674841,1707573190865,1374.54157325,0.00022269,2]
[313674842,1707573191036,1374.54157325,0.00022272,2]
[313674843,1707573201767,172.47139823,0.00022271,2]
[313674844,1707573202109,172.47139823,0.00022288,2]
[313674847,1707573249550,958.12,0.0002,2]
[313674848,1707573282056,177.25,0.00021691,2]
[313674849,1707573293590,168.46,0.00017348,2]
[313674850,1707573314777,269.41,0.00021686,2]
[313674851,1707573381575,462.35,0.00021679,2]
[313674852,1707573407118,1333.0026,0.00022441,2]
[313674853,1707573429967,158.44,0.00021841,2]
[313674854,1707573461469,200.0,0.00021918,2]
[313674855,1707573475835,197.66,0.00021698,2]
[313674856,1707573479051,1125.16461019,0.00022472,2]
[313674857,1707573487986,192.73,0.00021679,2]
[313674858,1707573537163,208.65,0.00019766,2]
[313674859,1707573537382,208.65,0.00022029,2]
[313674860,1707573613634,2012.0,0.0002,2]
[313674861,1707573626516,1858.0,0.0002246,2]
[313674862,1707573626769,2286.0,0.0002246,2]
[313674863,1707573629000,2831.0,0.0002246,2]
[313674864,1707573633782,840.0,0.0002246,2]
[313674865,1707573634853,178.539,0.0002246,2]
[313674866,1707573635736,150.0,0.0002246,2]
[313674867,1707573638541,1036.0,0.0002246,2]
[313674868,1707573686426,1680.9592421,0.00021862,2]
[313674869,1707573690410,2499.0,0.000225,2]
[313674870,1707573693802,208.0,0.00021832,2]
[313674871,1707573753711,300.0,0.00021966,2]
[313674873,1707573878274,630.12,0.00021669,2]
[313674874,1707573888303,157.02227276,0.0002243,2]
[313674875,1707573893264,157.0222727,0.00022464,2]
[313674876,1707573898259,157.0222727,0.00022498,2]
[313674877,1707573991576,6922.56028761,0.00022884,30]
[313674878,1707573998308,1027.87959173,0.00022426,2]
[313674890,1707574068140,151.52836075,0.0002244,2]
[313674891,1707574083518,187.78,0.00019714,2]
[313674892,1707574083750,187.78,0.00021977,2]
[313674893,1707574116509,197.66,0.0002212,2]
[313674900,1707574165429,107911.0,0.00022,2]
[313674927,1707574232147,-4266.85156024,0.00022504,2]
[313674928,1707574232156,-151.5283607,0.00022506,2]
[313674929,1707574232166,-150.0,0.00022527,2]
[313674930,1707574232175,-150.0,0.00022527,2]
[313674931,1707574232185,-3886.98545908,0.00022528,2]
[313674932,1707574232197,-1827.70841402,0.00022528,2]
[313674933,1707574232207,-2101.27618268,0.0002253,2]
[313674934,1707574232216,-157.0222727,0.00022532,2]
[313674935,1707574232227,-1840.63630915,0.00022539,3]
[313674936,1707574232236,-1519.32165002,0.00022539,2]
[313674937,1707574232247,-622.67114989,0.00022539,2]
[313674938,1707574232269,-1015.73451253,0.00022539,2]
[313674939,1707574232313,-312.37220644,0.00022539,2]
[313674940,1707574232327,-3072.3424096,0.00022539,2]
[313674941,1707574232339,-158.00432926,0.00022539,2]
[313674942,1707574232348,-613.36,0.00022539,2]
[313674943,1707574232357,-500.0,0.00022539,2]
[313674944,1707574232377,-500.0,0.00022539,2]
[313674945,1707574232388,-1723.79,0.00022539,2]
[313674946,1707574232397,-1523.13,0.00022539,2]
[313674947,1707574232406,-1389.37326114,0.00022539,2]
[313674948,1707574232430,-3983.70066479,0.00022539,2]
[313674949,1707574232443,-340.1393542,0.00022539,2]
[313674955,1707574238139,-632.425,0.00022539,2]
[313674956,1707574238152,-5177.68171987,0.00022539,2]
[313674957,1707574238162,-829.36,0.00022539,2]
[313674958,1707574238172,-500.0,0.00022539,2]
[313674959,1707574238181,-500.0,0.00022539,2]
[313674960,1707574238190,-6068.79,0.00022539,2]
[313674962,1707574238200,-500.0,0.00022539,2]
[313674964,1707574238209,-500.0,0.00022539,2]
[313674966,1707574238490,-500.0,0.00022539,2]
[313674967,1707574238499,-583.83,0.00022539,2]
[313674968,1707574238509,-1103.65,0.00022539,2]
[313674969,1707574238518,-2088.97,0.00022539,2]
[313674970,1707574238527,-4410.53,0.00022539,2]
[313674971,1707574238536,-500.0,0.00022539,2]
[313674972,1707574238545,-2300.86,0.00022539,2]
[313674973,1707574238554,-706.48,0.00022539,2]
[313674974,1707574238564,-500.0,0.00022539,2]
[313674975,1707574238573,-500.0,0.00022539,2]
[313674976,1707574238582,-1111.1,0.00022539,2]
[313674978,1707574238591,-500.0,0.00022539,2]
[313674980,1707574238600,-1490.52085418,0.00022539,2]
[313674982,1707574238612,-2701.91914582,0.00022539,2]
[313674984,1707574238622,-234.18039842,0.00022539,2]
[313674986,1707574238634,-265.81960158,0.00022539,2]
[313674988,1707574238643,-92.51525006,0.00022539,2]
[313674993,1707574238663,-407.48474994,0.00022539,2]
[313674995,1707574238673,-1461.55,0.00022539,2]
[313674997,1707574238683,-1156.45,0.00022539,2]
[313674999,1707574238692,-500.0,0.00022539,2]
[313675001,1707574238701,-387.29698802,0.00022539,2]
[313675003,1707574238713,-112.70301198,0.00022539,2]
[313675005,1707574238722,-526.96,0.00022539,2]
[313675007,1707574238731,-1385.12917982,0.00022539,2]
[313675009,1707574238742,-3236.04082018,0.00022539,2]
[313675011,1707574238751,-556.98,0.00022539,2]
[313675013,1707574238760,-4965.74,0.00022539,2]
[313675015,1707574238769,-500.0,0.00022539,2]
[313675017,1707574238778,-8652.9,0.00022539,2]
[313675019,1707574238788,-500.0,0.00022539,2]
[313675021,1707574238797,-500.0,0.00022539,2]
[313675023,1707574238806,-500.0,0.00022539,2]
[313675025,1707574238815,-500.0,0.00022539,2]
[313675027,1707574238824,-500.0,0.00022539,2]
[313675029,1707574238833,-1507.4,0.00022539,2]
[313675031,1707574238842,-1344.82,0.00022539,2]
[313675033,1707574238851,-500.0,0.00022539,2]
[313675035,1707574238863,-500.0,0.00022539,2]
[313675037,1707574238872,-2326.79,0.00022539,2]
[313675039,1707574238881,-500.0,0.00022539,2]
[313675041,1707574238891,-500.0,0.00022539,2]
[313675043,1707574238900,-1393.4,0.00022539,2]
[313675046,1707574238910,-1818.92,0.00022539,2]
[313675048,1707574238919,-674.57,0.00022539,2]
[313675050,1707574238929,-2027.14,0.00022539,2]
[313675052,1707574238939,-500.0,0.00022539,2]
[313675054,1707574238948,-930.03,0.00022539,5]
[313675056,1707574238956,-2829.1,0.00022539,2]
[313675058,1707574238966,-1455.5,0.00022539,2]
[313675059,1707574238974,-500.0,0.00022539,2]
[313675061,1707574238984,-500.0,0.00022539,2]
[313675063,1707574238993,-500.0,0.00022539,2]
[313675065,1707574239002,-500.0,0.00022539,2]
[313675068,1707574239012,-1720.68,0.00022539,2]
[313675069,1707574239021,-509.18,0.00022539,2]
[313675071,1707574239031,-555.72,0.00022539,2]
[313675073,1707574239040,-500.0,0.00022539,2]
[313675075,1707574239049,-3972.0,0.00022539,2]
[313675077,1707574239058,-500.0,0.00022539,2]
[313675079,1707574239067,-500.0,0.00022539,2]
[313675081,1707574239076,-2184.99,0.00022539,2]
[313675083,1707574239086,-500.0,0.00022539,2]
[313675086,1707574239095,-1966.35,0.00022539,2]
[313675087,1707574239104,-1817.93,0.00022539,2]
[313675089,1707574239113,-835.04,0.00022539,2]
[313675091,1707574239122,-619.85,0.00022539,2]
[313675093,1707574239131,-511.40790922,0.00022539,2]
[313675095,1707574239140,-587.81,0.00022539,2]
[313675097,1707574239149,-707.57800087,0.0002254,3]
[313675099,1707574239158,-500.0,0.0002254,2]
[313675101,1707574239167,-500.0,0.0002254,2]
[313675104,1707574239177,-500.0,0.0002254,2]
[313675106,1707574239187,-500.0,0.0002254,2]
[313675107,1707574239198,-577.6,0.0002254,2]
[313675110,1707574239207,-500.0,0.0002254,2]
[313675112,1707574239216,-500.0,0.0002254,2]
[313675113,1707574239225,-500.0,0.0002254,2]
[313675115,1707574239234,-500.0,0.0002254,2]
[313675117,1707574239243,-500.0,0.0002254,2]
[313675119,1707574239253,-500.0,0.0002254,2]
[313675122,1707574239265,-500.0,0.0002254,2]
[313675123,1707574239274,-500.0,0.0002254,2]
[313675126,1707574239284,-500.0,0.0002254,2]
[313675128,1707574239293,-609.43,0.0002254,2]
[313675130,1707574239302,-500.0,0.0002254,2]
[313675131,1707574239311,-500.0,0.0002254,2]
[313675133,1707574239320,-500.0,0.0002254,2]
[313675135,1707574239330,-321.08689497,0.0002254,2]
[313675138,1707574239340,-500.0,0.0002254,2]
[313675139,1707574239349,-500.0,0.0002254,2]
[313675141,1707574239359,-549.02,0.0002254,2]
[313675143,1707574239368,-500.0,0.0002254,2]
[313675146,1707574239377,-439.86035349,0.0002254,2]
[313675148,1707574239386,-500.0,0.0002254,2]
[313675149,1707574239395,-500.0,0.0002254,2]
[313675151,1707574239404,-613.71,0.0002254,2]
[313675152,1707574239413,-500.0,0.0002254,2]
[313675153,1707574239423,-500.0,0.0002254,2]
[313675154,1707574239433,-500.0,0.0002254,2]
[313675155,1707574239442,-500.0,0.0002254,2]
[313675156,1707574239452,-500.0,0.0002254,2]
[313675157,1707574239461,-517.90753849,0.0002254,2]
[313675158,1707574239470,-500.0,0.0002254,2]
[313675159,1707574239479,-567.2478279,0.0002254,2]
[313675160,1707574239488,-740.88,0.0002254,2]
[313675161,1707574239497,-500.0,0.0002254,2]
[313675162,1707574239507,-500.0,0.0002254,2]
[313675163,1707574239516,-500.0,0.0002254,2]
[313675164,1707574239525,-500.0,0.0002254,2]
[313675166,1707574239535,-417.3778529,0.0002254,2]
[313675167,1707574239544,-542.05442267,0.0002254,2]
[313675169,1707574239553,-500.0,0.0002254,2]
[313675171,1707574239562,-500.0,0.0002254,2]
[313675173,1707574239572,-500.0,0.0002254,2]
[313675175,1707574239581,-596.39681843,0.0002254,2]
[313675177,1707574239591,-500.0,0.0002254,2]
[313675180,1707574239600,-500.0,0.0002254,2]
[313675182,1707574239610,-551.62,0.0002254,2]
[313675183,1707574239619,-500.0,0.0002254,2]
[313675185,1707574239628,-500.0,0.0002254,2]
[313675187,1707574239638,-178.24430817,0.0002254,2]
[313675189,1707574239647,-500.0,0.0002254,2]
[313675191,1707574239656,-500.0,0.0002254,2]
[313675193,1707574239665,-500.0,0.0002254,2]